bitfinex-derivatives/quotes_BNBF0:USTF0_20250507
["timestamp","ask_amount","ask_price","bid_price","bid_amount"]
[1746655428644,1.00265297,601.57,599.9,4.12838889]
[1746655428946,1.00265297,601.56,599.9,4.12838889]
[1746655429243,1.00265297,601.55,599.9,4.12838889]
[1746655429445,1.00265297,601.54,599.9,4.12838889]
[1746655429643,1.00265297,601.53,599.9,4.12838889]
[1746655429841,1.00265297,601.52,599.9,4.12838889]
[1746655430544,1.29232829,601.51,599.9,4.12838889]
[1746655430742,1.00265297,601.5,599.9,4.12838889]
[1746655430940,1.00265297,601.49,599.9,4.12838889]
[1746655431243,1.00265297,601.48,599.9,4.12838889]
[1746655431443,1.00265297,601.47,599.9,4.12838889]
[1746655431640,1.00265297,601.46,599.9,4.12838889]
[1746655431846,1.00265297,601.45,599.9,4.12838889]
[1746655432142,1.00265297,601.44,599.9,4.12838889]
[1746655432445,1.00265297,601.43,599.9,4.12838889]
[1746655432643,1.00265297,601.42,599.9,4.12838889]
[1746655432843,1.00265297,601.41,599.9,4.12838889]
[1746655433148,1.00217011,601.4,599.9,4.12838889]
[1746655433341,1.00217011,601.39,599.9,4.12838889]
[1746655433843,1.00217011,601.38,599.9,4.12838889]
[1746655434346,1.00217011,601.37,599.9,4.12838889]
[1746655434647,1.00217011,601.36,599.9,4.12838889]
[1746655435147,1.00217011,601.35,599.9,4.12838889]
[1746655435444,1.00217011,601.34,599.9,4.12838889]
[1746655435941,1.00217011,601.33,599.9,4.12838889]
[1746655436144,0.28968858,601.4,599.9,4.12838889]
[1746655436145,1.00217011,601.32,599.9,4.12838889]
[1746655436447,1.00217011,601.31,599.9,4.12838889]
[1746655436847,1.00217011,601.3,599.9,4.12838889]
[1746655437148,1.00217011,601.29,599.9,4.12838889]
[1746655437447,1.00217011,601.28,599.9,4.12838889]
[1746655438147,1.00217011,601.27,599.9,4.12838889]
[1746655438649,1.00217011,601.26,599.9,4.12838889]
[1746655439047,1.00217011,601.25,599.9,4.12838889]
[1746655439244,1.00217011,601.24,599.9,4.12838889]
[1746655439748,1.00217011,601.23,599.9,4.12838889]
[1746655440051,1.00217011,601.22,599.9,4.12838889]
[1746655440455,1.00217011,601.21,599.9,4.12838889]
[1746655440647,1.00217011,601.2,599.9,4.12838889]
[1746655440848,1.00217011,601.19,599.9,4.12838889]
[1746655441144,1.00217011,601.18,599.9,4.12838889]
[1746655441350,1.00217011,601.17,599.9,4.12838889]
[1746655441750,1.00217011,601.16,599.9,4.12838889]
[1746655441949,1.00217011,601.15,599.9,4.12838889]
[1746655442451,1.00217011,601.14,599.9,4.12838889]
[1746655442945,1.00217011,601.13,599.9,4.12838889]
[1746655445754,1.00217011,601.12,599.9,4.12838889]
[1746655445951,1.00217011,601.11,599.9,4.12838889]
[1746655446147,1.00217011,601.1,599.9,4.12838889]
[1746655446854,0.28969461,601.33,599.9,4.12838889]
[1746655447252,0.99912938,601.09,599.9,4.12838889]
[1746655447853,0.99912938,601.08,599.9,4.12838889]
[1746655448153,0.99912938,601.07,599.9,4.12838889]
[1746655448548,0.99912938,601.06,599.9,4.12838889]
[1746655448751,0.99912938,601.05,599.9,4.12838889]
[1746655449152,0.28970426,601.31,599.9,4.12838889]
[1746655449447,0.99900456,601.3,599.9,4.12838889]
[1746655449650,0.99900456,601.29,599.9,4.12838889]
[1746655449953,0.99900456,601.28,599.9,4.12838889]
[1746655450153,0.99900456,601.27,599.9,4.12838889]
[1746655450653,0.99900456,601.26,599.9,4.12838889]
[1746655451052,0.99900456,601.25,599.9,4.12838889]
[1746655451253,0.99900456,601.24,599.9,4.12838889]
[1746655451453,0.99900456,601.23,599.9,4.12838889]
[1746655451849,0.99900456,601.22,599.9,4.12838889]
[1746655452047,0.99900456,601.21,599.9,4.12838889]
[1746655452352,0.28970426,601.31,599.9,4.12838889]
[1746655452353,0.99900456,601.2,599.9,4.12838889]
[1746655452554,0.28970426,601.31,599.9,4.12838889]
[1746655454155,1.00222651,601.3,599.9,4.12838889]
[1746655454351,1.00222651,601.29,599.9,4.12838889]
[1746655454749,1.00222651,601.28,599.9,4.12838889]
[1746655454953,1.00222651,601.27,599.9,4.12838889]
[1746655455156,1.00220669,601.26,599.9,4.12838889]
[1746655455351,1.00220669,601.25,599.9,4.12838889]
[1746655455954,1.00220669,601.24,599.9,4.12838889]
[1746655456754,1.00220669,601.23,599.9,4.12838889]
[1746655457358,1.00220669,601.22,599.9,4.12838889]
[1746655457754,1.00220669,601.21,599.9,4.12838889]
[1746655458157,1.00220669,601.2,599.9,4.12838889]
[1746655458357,1.00220669,601.19,599.9,4.12838889]
[1746655458651,1.00220669,601.18,599.9,4.12838889]
[1746655458860,1.00220669,601.17,599.9,4.12838889]
[1746655459157,1.00220669,601.16,599.9,4.12838889]
[1746655459859,1.00220669,601.15,599.9,4.12838889]
[1746655460157,1.00220669,601.14,599.9,4.12838889]
[1746655460757,1.00220669,601.13,599.9,4.12838889]
[1746655460953,1.00220669,601.12,599.9,4.12838889]
[1746655461356,1.00220669,601.11,599.9,4.12838889]
[1746655461656,1.00220669,601.1,599.9,4.12838889]
[1746655461859,1.00220669,601.09,599.9,4.12838889]
[1746655462158,1.00220669,601.08,599.9,4.12838889]
[1746655462558,0.28968376,601.36,599.9,4.12838889]
[1746655463259,1.00248068,601.35,599.9,4.12838889]
[1746655463558,1.00248068,601.34,599.9,4.12838889]
[1746655464154,1.00248068,601.33,599.9,4.12838889]
[1746655464361,1.00248068,601.32,599.9,4.12838889]
[1746655464658,1.00248068,601.31,599.9,4.12838889]
[1746655465161,1.00248068,601.3,599.9,4.12838889]
[1746655465463,1.00248068,601.29,599.9,4.12838889]
[1746655465655,1.00248068,601.28,599.9,4.12838889]
[1746655466161,1.00248068,601.27,599.9,4.12838889]
[1746655466361,0.69791332,602.61,599.9,4.12838889]
[1746655466562,0.28965603,601.41,599.9,4.12838889]
[1746655466762,0.30558003,602.6,599.9,4.12838889]
[1746655466962,0.30558003,602.59,599.9,4.12838889]
[1746655467159,0.28949579,601.41,599.9,4.12838889]
[1746655467359,1.27261468,602.64,599.9,4.12838889]
[1746655467559,0.28949941,601.41,599.9,4.12838889]
[1746655467862,0.33194469,602.51,599.9,4.12838889]
[1746655468063,0.30558485,602.5,599.9,4.12838889]
[1746655468362,0.28950784,601.41,599.9,4.12838889]
[1746655468662,0.33194469,602.51,599.9,3.16038889]
[1746655468861,0.28951025,601.41,599.9,3.16038889]
[1746655469065,0.33194469,602.51,599.9,3.16038889]
[1746655469266,0.28950904,601.41,599.9,3.16038889]
[1746655469567,0.33194469,602.51,599.9,3.16038889]
[1746655469767,0.3055811,602.5,599.9,3.16038889]
[1746655469967,0.28950784,601.41,599.9,2.14538889]
[1746655470168,0.33194469,602.51,599.9,2.14538889]
[1746655470361,1.60455937,602.51,599.9,1.25638889]
[1746655470566,0.28951025,601.41,599.9,1.25638889]
[1746655470768,0.30558011,602.5,599.9,1.25638889]
[1746655470968,0.28950904,601.41,599.9,1.25638889]
[1746655471267,1.60455937,602.51,599.9,1.05238889]
[1746655471467,0.3055769,602.5,599.9,1.05238889]
[1746655471662,0.28951025,601.41,599.9,2.10577633]
[1746655471864,1.60455937,602.51,599.9,2.10577633]
[1746655472063,0.28951025,601.41,599.9,2.10577633]
[1746655472464,1.60455937,602.51,599.9,2.10577633]
[1746655472661,0.2894982,601.45,599.9,2.10577633]
[1746655473062,1.60455937,602.51,599.9,3.19477633]
[1746655473262,1.60455937,602.51,599.91,1.05338744]
[1746655473464,0.30556933,602.5,599.91,1.05338744]
[1746655473666,0.30556933,602.49,599.91,1.05338744]
[1746655473864,0.30556933,602.48,599.91,2.07138744]
[1746655474170,0.30556933,602.47,599.91,2.07138744]
[1746655474368,0.30556933,602.46,599.91,2.07138744]
[1746655474570,0.30556933,602.45,599.91,2.07138744]
[1746655474771,0.30556933,602.44,599.91,2.07138744]
[1746655474967,0.30556933,602.43,599.91,2.07138744]
[1746655475365,1.27261468,602.39,600.03,1.05338744]
[1746655475771,0.30556933,602.38,600.03,1.05338744]
[1746655476071,0.30556933,602.37,600.03,1.05338744]
[1746655476467,0.30556933,602.36,600.03,1.05338744]
[1746655476668,0.30556933,602.38,600.03,1.05338744]
[1746655476965,0.30556933,602.37,600.03,1.05338744]
[1746655477370,0.30556933,602.38,600.03,1.05338744]
[1746655477571,0.30556933,602.38,599.91,2.149]
[1746655477871,0.28949579,602.42,599.91,2.149]
[1746655478071,0.30552435,602.37,599.91,2.149]
[1746655478268,0.30552435,602.41,599.91,2.149]
[1746655479671,0.28949579,602.42,599.91,2.149]
[1746655479872,0.3055158,602.4,599.91,2.149]
[1746655480167,0.3055158,602.39,599.91,2.149]
[1746655480367,0.3055158,602.41,599.91,2.149]
[1746655481574,0.28948857,602.4,599.91,2.149]
[1746655481775,0.59500437,602.4,599.91,2.149]
[1746655481974,0.28948857,602.4,599.91,2.149]
[1746655482174,0.3055158,602.39,599.91,2.149]
[1746655483878,0.3055158,602.39,599.92,1.05338744]
[1746655484477,0.28948977,602.38,599.92,1.05338744]
[1746655485079,0.30549397,602.37,599.92,1.05338744]
[1746655486083,0.30549397,602.37,599.91,2.149]
[1746655486783,0.30549397,602.36,599.91,2.149]
[1746655486982,0.30549397,602.35,599.91,2.149]
[1746655487182,0.30549397,602.37,599.91,2.149]
[1746655487383,0.30549397,602.36,599.91,2.149]
[1746655487678,0.30549397,602.35,599.91,2.149]
[1746655488080,0.30549397,602.34,599.91,2.149]
[1746655488280,0.30549397,602.33,599.91,2.149]
[1746655488482,0.30549397,602.37,599.91,2.149]
[1746655488783,0.30549397,602.36,599.91,2.149]
[1746655489184,0.30549397,602.35,599.91,2.149]
[1746655489586,0.30549397,602.34,599.91,2.149]
[1746655489786,0.30549397,602.37,599.91,2.149]
[1746655490387,0.30549397,602.5,599.91,2.149]
[1746655490588,0.28951506,602.36,599.91,2.149]
[1746655490888,0.30549397,602.35,599.91,2.149]
[1746655491088,0.28950182,602.35,599.91,2.149]
[1746655491290,0.30549397,602.34,599.91,2.149]
[1746655491690,0.28950182,602.35,599.91,2.149]
[1746655491891,0.30555552,602.34,600.03,0.33331666]
[1746655492690,0.3320494,602.32,600.03,0.33331666]
[1746655493491,0.59508865,602.31,600.03,0.33331666]
[1746655493687,0.33206594,602.29,600.03,0.33331666]
[1746655494087,0.30555552,602.28,600.03,0.33331666]
[1746655494492,0.33208248,602.26,600.03,0.33331666]
[1746655494685,0.30555552,602.25,600.03,0.33331666]
[1746655494889,0.33209903,602.23,600.03,0.33331666]
[1746655495086,0.30555552,602.22,600.03,0.33331666]
[1746655495788,0.30555552,602.22,600.03,1.07331666]
[1746655496095,0.33211557,602.2,600.03,1.07331666]
[1746655496392,0.30555552,602.19,600.03,1.07331666]
[1746655496694,0.33213212,602.17,600.03,1.07331666]
[1746655496995,0.30555552,602.16,600.03,1.07331666]
[1746655497195,0.33214866,602.14,600.03,1.07331666]
[1746655497695,0.30555552,602.13,600.03,1.07331666]
[1746655498396,0.33216521,602.11,600.03,1.07331666]
[1746655498596,0.30555552,602.1,600.03,1.07331666]
[1746655499093,0.30555552,602.1,600.03,2.06031666]
[1746655499298,0.33218176,602.08,600.03,2.06031666]
[1746655499497,0.30555552,602.07,600.03,2.06031666]
[1746655499797,0.33219832,602.05,600.03,2.06031666]
[1746655499993,0.30555552,602.04,600.03,2.06031666]
[1746655500298,0.33221487,602.02,600.03,2.06031666]
[1746655500593,0.30555552,602.01,600.03,2.06031666]
[1746655502493,0.33223143,601.99,600.03,2.06031666]
[1746655502891,0.30555552,601.98,600.03,2.06031666]
[1746655503093,0.33224798,601.96,600.03,2.06031666]
[1746655503498,0.30555552,601.95,600.03,2.06031666]
[1746655503696,0.33226454,601.93,600.03,2.06031666]
[1746655503998,0.30555552,601.92,600.03,2.06031666]
[1746655504997,0.3322811,601.9,600.03,2.06031666]
[1746655505400,0.30555552,601.89,600.03,2.06031666]
[1746655505600,0.33229215,601.88,600.03,2.06031666]
[1746655505898,0.63784767,601.88,600.03,2.06031666]
[1746655506098,0.30555552,601.87,600.03,2.98731666]
[1746655506295,0.33230319,601.86,600.03,2.98731666]
[1746655506493,0.30555552,601.85,600.03,2.98731666]
[1746655506695,0.33231423,601.84,600.03,2.98731666]
[1746655506895,0.30555552,601.83,600.03,2.98731666]
[1746655507095,0.33232527,601.82,600.03,2.98731666]
[1746655507500,0.30555552,601.81,600.03,2.98731666]
[1746655507900,0.33233632,601.8,600.03,2.98731666]
[1746655508498,0.28962228,601.79,600.03,2.98731666]
[1746655508700,0.33234736,601.78,600.03,2.98731666]
[1746655509102,0.30555552,601.77,600.03,2.98731666]
[1746655511004,0.33235841,601.76,600.03,2.98731666]
[1746655511200,0.30555552,601.75,600.03,2.98731666]
[1746655511403,0.33236946,601.74,600.03,2.98731666]
[1746655511805,0.30555552,601.73,600.03,2.98731666]
[1746655512104,0.3323805,601.72,600.03,2.98731666]
[1746655512405,0.30567377,601.71,600.03,2.98731666]
[1746655516310,0.3323805,601.72,600.03,2.98731666]
[1746655516810,0.30563779,601.71,600.03,2.98731666]
[1746655517109,0.3323805,601.72,600.03,2.98731666]
[1746655517504,0.289603,601.71,600.03,2.98731666]
[1746655518105,0.30564645,601.7,600.03,2.98731666]
[1746655519210,2.2689053,601.69,600.03,2.98731666]
[1746655519411,1.57052946,601.68,600.03,2.98731666]
[1746655519609,2.2689053,601.67,600.03,2.98731666]
[1746655519920,2.2689053,601.66,600.03,2.98731666]
[1746655520110,2.26893825,601.65,600.03,2.98731666]
[1746655520306,2.26893825,601.64,600.03,2.98731666]
[1746655520510,1.26491596,601.63,600.03,2.98731666]
[1746655520810,2.26893825,601.62,600.03,2.98731666]
[1746655521011,2.26854759,601.61,600.03,2.98731666]
[1746655521310,1.26467873,601.6,600.03,2.98731666]
[1746655521509,1.26467873,601.59,600.03,2.98731666]
[1746655521712,2.26854759,601.58,600.03,2.98731666]
[1746655521910,2.26854759,601.57,600.03,2.98731666]
[1746655522112,1.26454766,601.56,600.03,2.98731666]
[1746655522411,2.26841652,601.55,600.03,2.98731666]
[1746655522611,2.26841652,601.54,600.03,2.98731666]
[1746655522911,2.26841652,601.53,600.03,2.98731666]
[1746655523104,2.26841652,601.52,600.03,2.98731666]
[1746655523308,2.26810076,601.51,600.03,2.98731666]
[1746655523506,2.26810076,601.5,600.03,2.98731666]
[1746655523708,1.2642319,601.49,600.03,2.98731666]
[1746655523910,1.2642319,601.48,600.03,2.98731666]
[1746655524111,2.26810076,601.47,600.03,2.98731666]
[1746655524412,2.26810076,601.46,600.03,2.98731666]
[1746655524613,2.26810076,601.45,600.03,2.98731666]
[1746655524813,2.26810076,601.44,600.03,2.98731666]
[1746655525010,1.2642319,601.43,600.03,2.98731666]
[1746655525206,1.2642319,601.42,600.03,2.98731666]
[1746655525409,2.26810076,601.41,600.03,2.98731666]
[1746655525711,2.26810076,601.4,600.03,2.98731666]
[1746655525912,2.26810076,601.39,600.03,2.98731666]
[1746655526213,2.26810076,601.38,600.03,2.98731666]
[1746655526407,2.26294893,601.37,600.03,2.98731666]
[1746655526612,1.25908007,601.36,600.03,2.98731666]
[1746655526811,2.26294893,601.35,600.03,2.98731666]
[1746655527015,1.25906053,601.34,600.03,2.98731666]
[1746655527214,1.25906053,601.33,600.03,2.98731666]
[1746655527411,2.26292939,601.32,600.03,2.98731666]
[1746655527615,1.25906053,601.31,600.03,2.98731666]
[1746655527812,2.26292939,601.3,600.03,2.98731666]
[1746655528017,2.26292939,601.29,600.03,2.98731666]
[1746655528217,2.26292939,601.28,600.03,2.98731666]
[1746655528419,2.26292939,601.27,600.03,2.98731666]
[1746655528618,1.25906053,601.26,600.03,2.98731666]
[1746655528816,2.26292939,601.25,600.03,2.98731666]
[1746655529013,1.25906053,601.24,600.03,2.98731666]
[1746655529218,1.25906053,601.23,600.03,2.98731666]
[1746655529419,1.25906053,601.22,600.03,2.98731666]
[1746655529620,1.25906053,601.21,600.03,2.98731666]
[1746655529820,1.25906053,601.2,600.03,2.98731666]
[1746655530020,1.25906053,601.19,600.03,2.98731666]
[1746655530221,1.25918456,601.18,600.03,2.98731666]
[1746655530417,1.25918456,601.17,600.03,2.98731666]
[1746655530617,1.25918456,601.16,600.03,2.98731666]
[1746655530823,1.2594507,601.15,600.03,2.98731666]
[1746655531120,0.28966327,601.34,600.03,2.98731666]
[1746655531323,1.25944709,601.33,600.03,2.98731666]
[1746655531516,1.25944709,601.32,600.03,2.98731666]
[1746655531717,0.28966327,601.34,600.03,2.98731666]
[1746655531718,1.25942442,601.31,600.03,2.98731666]
[1746655531918,1.25942442,601.3,600.03,2.98731666]
[1746655532122,1.25942442,601.29,600.03,3.95331666]
[1746655532323,1.25942442,601.28,600.03,3.95331666]
[1746655532622,1.25942217,601.27,600.03,3.95331666]
[1746655532918,1.25942217,601.26,600.03,3.95331666]
[1746655533121,0.28965603,601.34,600.03,3.95331666]
[1746655533322,1.25939628,601.33,600.03,3.95331666]
[1746655533520,1.25939628,601.32,600.03,3.95331666]
[1746655533720,1.25939064,601.31,600.03,3.95331666]
[1746655533922,1.25939064,601.3,600.03,3.95331666]
[1746655534219,0.28965603,601.34,600.03,3.95331666]
[1746655535124,0.3323805,601.72,600.03,3.95331666]
[1746655535321,0.28956565,601.5,600.03,3.95331666]
[1746655535518,0.3323805,601.72,600.03,3.95331666]
[1746655535824,0.99954464,601.49,600.03,3.95331666]
[1746655536422,0.99954464,601.48,600.03,3.95331666]
[1746655536720,0.99954464,601.47,600.03,3.95331666]
[1746655537224,0.99954464,601.46,600.03,3.95331666]
[1746655537825,0.99954464,601.45,600.03,3.95331666]
[1746655538028,0.99954464,601.44,600.03,3.95331666]
[1746655538222,0.99954464,601.43,600.03,3.95331666]
[1746655538422,0.99954464,601.42,600.03,3.95331666]
[1746655538621,0.99954464,601.41,600.03,3.95331666]
[1746655538821,0.99954464,601.4,600.03,3.95331666]
[1746655539226,0.28960059,601.5,600.03,3.95331666]
[1746655539227,0.99954464,601.39,600.03,3.95331666]
[1746655539729,0.99954464,601.38,600.03,3.95331666]
[1746655539928,0.99954464,601.37,600.03,3.95331666]
[1746655540123,0.99954464,601.36,600.03,3.95331666]
[1746655540422,0.99954464,601.35,600.03,3.95331666]
[1746655540627,0.99954464,601.34,600.03,3.95331666]
[1746655541128,0.99954464,601.33,600.03,3.95331666]
[1746655541328,0.99954464,601.32,600.03,3.95331666]
[1746655541529,0.99954464,601.31,600.03,3.95331666]
[1746655541729,0.99954464,601.3,600.03,3.95331666]
[1746655542029,0.99954464,601.29,600.03,3.95331666]
[1746655542331,0.28961264,601.5,600.03,3.95331666]
[1746655542528,0.99908755,601.49,600.03,3.95331666]
[1746655543025,0.99908755,601.48,600.03,3.95331666]
[1746655543229,0.99908755,601.47,600.03,3.95331666]
[1746655543430,0.99908755,601.46,600.03,3.95331666]
[1746655544029,0.99908755,601.45,600.03,3.95331666]
[1746655544226,0.99908755,601.44,600.03,3.95331666]
[1746655544530,0.99908755,601.43,600.03,3.95331666]
[1746655545631,0.99908755,601.42,600.03,3.95331666]
[1746655546130,0.99908755,601.41,600.03,3.95331666]
[1746655546331,0.99908755,601.4,600.03,3.95331666]
[1746655546729,0.99908755,601.39,600.03,3.95331666]
[1746655547445,0.99908755,601.38,600.03,3.95331666]
[1746655547629,0.99908755,601.37,600.03,3.95331666]
[1746655548031,0.99908755,601.36,600.03,3.95331666]
[1746655548231,0.99908755,601.35,600.03,3.95331666]
[1746655548531,0.99908755,601.34,600.03,3.95331666]
[1746655548931,0.99908755,601.33,600.03,3.95331666]
[1746655549326,0.99908755,601.32,600.03,3.95331666]
[1746655549525,0.99908755,601.31,600.03,3.95331666]
[1746655549729,0.99908755,601.3,600.03,3.95331666]
[1746655550026,0.99908755,601.29,600.03,3.95331666]
[1746655550528,0.28961023,601.53,600.03,3.95331666]
[1746655550832,0.99624611,601.52,600.03,3.95331666]
[1746655551231,0.99624611,601.51,600.03,3.95331666]
[1746655551532,0.99624611,601.5,600.03,3.95331666]
[1746655551832,0.99624611,601.49,600.03,3.95331666]
[1746655552733,0.99624611,601.48,600.03,3.95331666]
[1746655552932,0.99624611,601.47,600.03,3.95331666]
[1746655553535,0.99624611,601.46,600.03,3.95331666]
[1746655554029,0.99624611,601.45,600.03,3.95331666]
[1746655554529,0.99624611,601.44,600.03,3.95331666]
[1746655554837,0.99624611,601.43,600.03,3.95331666]
[1746655555038,0.28958854,601.53,600.03,3.95331666]
[1746655559445,1.27261468,602.92,600.03,3.95331666]
[1746655559641,0.33179601,602.78,600.03,3.95331666]
[1746655559841,0.28941394,601.53,600.03,3.95331666]
[1746655560040,0.3055342,602.77,600.03,3.95331666]
[1746655560337,0.3055342,602.76,600.03,3.95331666]
[1746655560543,0.3055342,602.75,600.03,3.95331666]
[1746655560738,0.3318841,602.62,600.03,3.95331666]
[1746655561044,0.3055342,602.61,600.03,3.95331666]
[1746655561342,0.3319502,602.5,600.03,3.95331666]
[1746655561844,0.3055342,602.49,600.03,3.95331666]
[1746655562037,0.33196673,602.47,600.03,3.95331666]
[1746655562542,0.3055342,602.46,600.03,3.95331666]
[1746655562743,0.33198326,602.44,600.03,3.95331666]
[1746655563244,0.3055342,602.43,600.03,3.95331666]
[1746655563543,0.3319998,602.41,600.03,3.95331666]
[1746655563940,0.3055342,602.4,600.03,3.95331666]
[1746655564141,0.33201633,602.38,600.03,3.95331666]
[1746655564644,0.3055342,602.37,600.03,3.95331666]
[1746655565044,0.3055342,602.36,600.03,3.95331666]
[1746655565245,0.33203287,602.35,600.03,3.95331666]
[1746655565444,0.3055342,602.34,600.03,3.95331666]
[1746655567345,0.3320494,602.32,600.03,3.95331666]
[1746655567940,0.3055342,602.31,600.03,3.95331666]
[1746655568144,0.33206594,602.29,600.03,3.95331666]
[1746655568846,0.3055342,602.28,600.03,3.95331666]
[1746655569048,0.33207697,602.27,600.03,3.95331666]
[1746655569345,0.3055342,602.26,600.03,3.95331666]
[1746655569546,0.332088,602.25,600.03,3.95331666]
[1746655569943,0.3055342,602.24,600.03,3.95331666]
[1746655570143,0.33209903,602.23,600.03,3.95331666]
[1746655570644,0.3055342,602.22,600.03,3.95331666]
[1746655570844,0.33211006,602.21,600.03,3.95331666]
[1746655571243,0.3055342,602.2,600.03,3.95331666]
[1746655571448,0.33212109,602.19,600.03,3.95331666]
[1746655571649,0.3055342,602.18,600.03,3.95331666]
[1746655571841,0.33213212,602.17,600.03,3.95331666]
[1746655572647,0.3055342,602.16,600.03,3.95331666]
[1746655574548,0.28948014,602.15,600.03,3.95331666]
[1746655574749,0.63768286,602.14,600.03,3.95331666]
[1746655574946,0.33215418,602.13,600.03,3.95331666]
[1746655575146,0.63768838,602.13,600.03,3.95331666]
[1746655575347,0.3055342,602.12,600.03,3.95331666]
[1746655577748,0.28947533,602.11,600.03,3.95331666]
[1746655579550,0.30543498,602.1,600.03,3.95331666]
[1746655579850,0.28947533,602.11,600.03,3.95331666]
[1746655580844,0.30544774,602.1,600.03,3.95331666]
[1746655583546,0.33215418,602.13,600.03,3.95331666]
[1746655583746,0.59499438,602.09,600.03,3.95331666]
[1746655584050,0.3055022,602.08,600.03,3.95331666]
[1746655584852,1.25718495,602.07,600.03,3.95331666]
[1746655585047,0.3055022,602.08,600.03,3.95331666]
[1746655585253,1.25728457,602.07,600.03,3.95331666]
[1746655585553,1.25736126,602.06,600.03,3.95331666]
[1746655585747,1.56286346,602.05,600.03,3.95331666]
[1746655585952,1.25736126,602.04,600.03,3.95331666]
[1746655586152,0.3055022,602.05,600.03,3.95331666]
[1746655586153,1.25787231,602.03,600.03,3.95331666]
[1746655586351,1.25787231,602.02,600.03,3.95331666]
[1746655586549,1.25787231,602.01,600.03,3.95331666]
[1746655586747,1.25790917,602.0,600.03,3.95331666]
[1746655586948,1.25790917,601.99,600.03,3.95331666]
[1746655587251,1.2579614,601.98,600.03,3.95331666]
[1746655587449,1.2579614,601.97,600.03,3.95331666]
[1746655587650,1.2579614,601.96,600.03,3.95331666]
[1746655587853,1.2579614,601.95,600.03,3.95331666]
[1746655588147,1.56402097,601.94,600.03,3.95331666]
[1746655588347,1.25848405,601.93,600.03,3.95331666]
[1746655588547,1.25848405,601.92,600.03,3.95331666]
[1746655588750,1.56402097,601.91,600.03,3.95331666]
[1746655588952,1.25848405,601.9,600.03,3.95331666]
[1746655589147,1.25848405,601.89,600.03,3.95331666]
[1746655589352,1.563989,601.88,600.03,3.95331666]
[1746655589552,1.25845208,601.87,600.03,3.95331666]
[1746655589853,1.56399269,601.86,600.03,3.95331666]
[1746655590049,1.25845577,601.85,600.03,3.95331666]
[1746655590248,0.30553692,601.85,600.03,3.95331666]
[1746655590456,1.25918536,601.84,600.03,3.95331666]
[1746655590652,1.25918536,601.83,600.03,3.95331666]
[1746655590854,1.25918536,601.82,600.03,3.95331666]
[1746655591054,1.25918536,601.81,600.03,3.95331666]
[1746655591355,1.56471548,601.8,600.03,3.95331666]
[1746655591553,1.25918536,601.79,600.03,3.95331666]
[1746655591750,1.25916585,601.78,600.03,3.95331666]
[1746655592053,1.25916585,601.77,600.03,3.95331666]
[1746655592252,1.25916585,601.76,600.03,3.95331666]
[1746655592451,1.25916585,601.75,600.03,3.95331666]
[1746655592754,1.25922554,601.74,600.03,3.95331666]
[1746655592952,1.25922554,601.73,600.03,3.95331666]
[1746655593149,1.25922554,601.72,600.03,3.95331666]
[1746655593352,1.25922554,601.71,600.03,3.95331666]
[1746655593547,1.25922554,601.7,600.03,3.95331666]
[1746655593753,1.25922554,601.69,600.03,3.95331666]
[1746655593952,1.25922554,601.68,600.03,3.95331666]
[1746655594149,1.25986595,601.67,600.03,3.95331666]
[1746655594352,1.25985612,601.66,600.03,3.95331666]
[1746655594549,1.25985612,601.65,600.03,3.95331666]
[1746655594751,1.25985612,601.64,600.03,3.95331666]
[1746655594950,0.2895536,601.75,600.03,3.95331666]
[1746655595255,0.33215418,602.13,600.03,3.95331666]
[1746655595556,0.28949218,601.74,600.03,3.95331666]
[1746655595851,0.30550295,602.12,600.03,3.95331666]
[1746655596151,1.00410471,601.73,600.03,3.95331666]
[1746655596350,1.25851761,601.72,600.03,3.95331666]
[1746655596556,2.26262232,601.71,600.03,3.95331666]
[1746655596856,2.26262232,601.7,600.03,3.95331666]
[1746655597055,1.25851761,601.69,600.03,3.95331666]
[1746655597254,2.26262232,601.68,600.03,3.95331666]
[1746655597456,1.25852539,601.67,600.03,3.95331666]
[1746655597655,1.25856527,601.66,600.03,3.95331666]
[1746655597857,2.26266998,601.65,600.03,3.95331666]
[1746655598156,2.26266998,601.64,600.03,3.95331666]
[1746655598353,2.26266998,601.63,600.06,1.05338744]
[1746655598652,2.26267093,601.62,600.08,0.33328889]
[1746655598851,1.25856622,601.61,600.08,0.33328889]
[1746655599151,2.26267093,601.6,600.08,0.33328889]
[1746655599349,1.25856622,601.59,600.08,0.33328889]
[1746655599555,2.26267093,601.58,600.08,0.33328889]
[1746655599749,2.26267093,601.57,600.08,0.33328889]
[1746655599951,2.26267093,601.56,600.08,0.33328889]
[1746655600257,2.26477223,601.55,600.08,0.33328889]
[1746655600455,1.26066752,601.54,600.08,0.33328889]
[1746655600654,1.26066752,601.53,600.08,0.33328889]
[1746655600857,2.26477223,601.52,600.08,0.33328889]
[1746655601057,1.26066752,601.51,600.08,0.33328889]
[1746655601259,2.26479837,601.5,600.09,0.949]
[1746655601459,1.26069366,601.49,600.11,0.33327223]
[1746655601660,1.26069366,601.48,600.11,0.33327223]
[1746655601860,2.26479837,601.47,600.11,0.33327223]
[1746655602162,2.26479837,601.46,600.11,0.33327223]
[1746655602458,2.26479837,601.45,600.12,0.992]
[1746655602657,1.26069366,601.44,600.14,0.33325557]